Workbook

Sheet 2019년 교육과정 편성(안) (hidden)
A1: 2019 교육과정 편성 총괄표(안) | AM1: 단위: 천원 소요비용은 과정별 전체 소요비용(미운영 과정은 예상액을 포함)
A2: 집합교육 | L2: *교육 횟수 및 인원에 기본교육은 포함하지 않았음 | AG2: 2017년 소요액 | AM2: 2018년 예상액
A3: 구분 | G3: 과정명 | H3: 수준 | I3: 선이수과정 | J3: 교육대상 | K3: 과정수 | N3: 교육일수 | Q3: 기당인원 | T3: 교육횟수 | W3: 총인원 | Z3: 연인원 | AC3: 변경내용(2019년) | AD3: 변경내용(2018년) | AE3: 담당자 | AF3: 2018년 교육기간 | AG3: 합계 | AH3: 강사료 | AI3: 평가수당 | AJ3: 수용비 | AL3: 과정위탁 | AM3: 합계 | AN3: 강사료 | AO3: 평가수당 | AP3: 수용비 | AR3: 참고사항
K4: 2019 | L4: 2018 | M4: 2017 | N4: 2019 | O4: 2018 | P4: 2017 | Q4: 2019 | R4: 2018 | S4: 2017 | T4: 2019 | U4: 2018 | V4: 2017 | W4: 2019 | X4: 2018 | Y4: 2017 | Z4: 2019 | AA4: 2018 | AB4: 2017 | AJ4: 교재비 | AK4: 기타 (다과등) | AP4: 교재비 | AQ4: 기타 (다과등)
A5: 집합교육 | G5: ( 신설 폐강) | L5: =L6+L15+L120 -> 96 | M5: =M6+M15+M120 -> 86 | U5: =U6+U15+U120 -> 154 | V5: =V6+V15+V120 -> 132 | X5: =X6+X15+X120 -> 4210 | Y5: =Y6+Y15+Y120 -> 3690 | AA5: =AA6+AA15+AA120 -> 12405 | AB5: =AB6+AB15+AB120 -> 11835 | AG5: =SUM(AH5:AK5) ->  | AH5: =AH6+AH15+AH87+#REF!+#REF!+#REF! ->  | AI5: =AI6+AI15+AI87+#REF!+#REF!+#REF! ->  | AJ5: =AJ6+AJ15+AJ87+#REF!+#REF!+#REF! ->  | AK5: =AK6+AK15+AK87+#REF!+#REF!+#REF! ->  | AL5: =AL6+AL15+AL87+#REF!+#REF!+#REF! -> 
A6: A. 기본교육 | L6: =SUM(L7:L14) -> 8 | M6: =SUM(M7:M14) -> 8 | O6: 0 | P6: 0 | R6: 0 | S6: 0 | U6: 0 | V6: 0 | X6: 0 | Y6: 0 | AA6: 0 | AB6: 0 | AD6: =SUM(AD11:AD14) -> 0 | AG6: 11316 | AH6: =SUM(AH11:AH14) -> 7414 | AI6: =SUM(AI11:AI14) -> 250 | AJ6: =SUM(AJ11:AJ14) -> 2930 | AK6: =SUM(AK11:AK14) -> 722 | AL6: =SUM(AL11:AL14) -> 21226
E7: A-0-0-0-01(09c) | G7: 신규자 기본교육 | J7: 신규임용예정자 | L7: 1 | M7: 1 | O7: 3주 | P7: 4주 | AF7: 9월 3주간 | AG7: 24281 | AH7: 14000 | AI7: 565 | AJ7: 3960 | AK7: 5756 | AS7: 김진화
E8: A-0-0-0-08(17c) | G8: 경력채용자 기본교육 | J8: 신규임용예정자 | L8: 1 | M8: 1 | O8: 2주 | P8: 2주 | AD8: 2017년도 4주 → 3주 | AE8: 김진화 | AF8: 6월 2주간 | AG8: 9129 | AH8: 5688 | AI8: 125 | AJ8: 1958 | AK8: 1358
E9: A-0-0-0-02(12c) | G9: 일반직 전직공무원 기본교육 | J9: 전직자 | L9: 1 | M9: 1 | O9: 1주 | P9: 1주 | AE9: 김진화 | AG9: 4500 | AH9: 3500 | AJ9: 700 | AK9: 300 | AS9: 김진화
E10: A-0-0-0-03(14c) | G10: 전입공무원 실무교육 | J10: 전입자 | L10: 1 | M10: 1 | O10: 2주 | P10: 2주 | AG10: 0 | AR10: 16년 미실시
E11: A-0-0-0-06(16c) | G11: 4급 승진후보자 역량향상 과정 | J11: 4급 승진 후보자 | L11: 1 | M11: 1 | O11: 1주 | P11: 1주 | AE11: 김진화 | AF11: 5월 | AG11: 0 | AS11: 김진화
E12: A-0-0-0-07(16c) | G12: 5급 승진후보자 역량향상과정 | J12: 5급승진 후보자 | L12: 1 | M12: 1 | O12: 1주 | P12: 1주 | AE12: 김진화 | AF12: 2월 | AG12: 8540 | AH12: 6412 | AI12: 250 | AJ12: 1622 | AK12: 256 | AS12: 김진화
E13: A-0-0-0-09(17c) | G13: 관리자 혁신역량향상 과정(2017) | J13: 4급이상 관리자 | L13: 1 | M13: 1 | O13: 2일 | P13: 2일 | AC13: 협의회)토론시간 확대 (검토의견) 토의 주제에 따라 토론시간 확대 과정을 1일로 단축필요(자체 수요조차 결과 1일 선호) | AL13: 21226 | AS13: 순수현
E14: A-0-0-0-05(09c) | G14: 지방청관리자 역량강화 | J14: 지방청 과장, 소장 | L14: 1 | M14: 1 | O14: 2일 | P14: 2일 | AC14: 협의회)자유토론 업무공유 시간필요 (검토의견) 업무공유 시간 배정 | AG14: =SUM(AH14:AK14) -> 2776 | AH14: 1002 | AJ14: 1308 | AK14: 466 | AR14: 16년 위탁(1,000) | AS14: 순수현
A15: B. 전문교육 | L15: =L16+L37+L56+L70+L87+L95+L99 -> 85 | M15: =M16+M37+M56+M70+M87+M95+M99 -> 75 | O15: =O16+O37+O56+O70+O87+O95+O99 -> 213 | P15: =P16+P37+P56+P70+P87+P95+P99 -> 207 | R15: =R16+R37+R56+R70+R87+R95+R99 -> 1810 | S15: =S16+S37+S56+S70+S87+S95+S99 -> 1600 | U15: =U16+U37+U56+U70+U87+U95+U99 -> 147 | V15: =V16+V37+V56+V70+V87+V95+V99 -> 126 | X15: =X16+X37+X56+X70+X87+X95+X99 -> 3950 | Y15: =Y16+Y37+Y56+Y70+Y87+Y95+Y99 -> 3490 | AA15: =AA16+AA37+AA56+AA70+AA87+AA95+AA99 -> 11645 | AB15: =AB16+AB37+AB56+AB70+AB87+AB95+AB99 -> 11255 | AG15: =SUM(AH15:AK15) ->  | AH15: =AH16+AH56+AH95 ->  | AI15: =AI16+AI56+AI95 ->  | AJ15: =AJ16+AJ56+AJ95 ->  | AK15: =AK16+AK56+AK95 ->  | AL15: =AL16+AL56+AL95 -> 
B16: B-1. 국가통계 | L16: =L17+L32 -> 16 | M16: 15 | O16: 49 | P16: 47 | R16: 490 | S16: 445 | U16: 27 | V16: 27 | X16: 830 | Y16: 805 | AA16: 2780 | AB16: 2765 | AG16: =SUM(AH16:AK16) ->  | AH16: =AH32+AH38+#REF! ->  | AI16: =AI32+AI38+#REF! ->  | AJ16: =AJ32+AJ38+#REF! ->  | AK16: =AK32+AK38+#REF! ->  | AL16: =AL32+AL38+#REF! -> 
C17: B-1-1. 국가통계 정책 및 기준 | L17: =L18+L27 -> 12 | M17: 11 | O17: 33 | P17: 31 | R17: 330 | S17: 285 | U17: 19 | V17: 19 | X17: 510 | Y17: 485 | AA17: 1500 | AB17: 1485 | AD17: =SUM(AD19:AD30) -> 0 | AG17: =SUM(AH17:AK17) -> 32308 | AH17: =SUM(AH19:AH30) -> 22146 | AI17: =SUM(AI19:AI30) -> 420 | AJ17: =SUM(AJ19:AJ30) -> 6814 | AK17: =SUM(AK19:AK30) -> 2928 | AL17: =SUM(AL19:AL30) -> 0
D18: B-1-1-1. 국가통계 정책 | L18: =SUM(L19:L26) -> 8 | M18: =SUM(M19:M26) -> 7 | O18: 25 | P18: 23 | R18: 210 | S18: 165 | U18: 15 | V18: 13 | X18: 390 | Y18: 305 | AA18: 1260 | AB18: 1065
E19: B-1-2-1-01(11c) | G19: 국가통계 이해 | H19: 초급 | J19: 제한없음 | L19: 1 | M19: 1 | O19: 3 | P19: 3 | R19: 40 | S19: 20 | U19: 2 | V19: 2 | X19: =R19*U19 -> 80 | Y19: 40 | AA19: =O19*R19*U19 -> 240 | AB19: 120 | AD19: 기당인원 20→40 | AF19: 3.28.~3.30, 8.29.~8.31. | AG19: =SUM(AH19:AK19) -> 10161 | AH19: 4424 | AJ19: 3565 | AK19: 2172 | AR19: 전문교재 | AS19: 전문1팀
E20: B-1-2-1-02(08c) | G20: 통계와 정책 | H20: 중급 | I20: 국가통계실무1-4 | J20: 통계청 | L20: 1 | M20: 1 | O20: 3 | P20: 3 | R20: 20 | S20: 20 | U20: 2 | V20: 2 | X20: 40 | Y20: 40 | AA20: 120 | AB20: 120 | AF20: 2.5.~2.7. 7.2~7.4. | AG20: =SUM(AH20:AK20) -> 5312 | AH20: =2316+2355 -> 4671 | AI20: =170+250 -> 420 | AJ20: 0 | AK20: =120+101 -> 221 | AS20: 빅데이터
E21: B-1-2-1-08(17c) | G21: 정책과정과 통계의 역할 | H21: 초급 | J21: 제한없음 | L21: 1 | M21: 1 | O21: 3 | P21: 3 | R21: 20 | S21: 20 | U21: 2 | V21: 2 | X21: 40 | Y21: 40 | AA21: 120 | AB21: 120 | AD21: 중급→초급 | AF21: 5.16.~5.18, 10.15.~10.17. | AG21: =SUM(AH21:AK21) -> 2984 | AH21: 2490 | AJ21: 383 | AK21: 111 | AS21: 빅데이터
E22: B-1-2-1-09(17c) | G22: 지역사회지표 작성과 활용 | H22: 초급 | J22: 제한없음 | L22: 1 | M22: 1 | O22: 2 | P22: 3 | R22: 30 | S22: 30 | U22: 1 | V22: 1 | X22: 30 | Y22: 30 | AA22: 60 | AB22: 90 | AC22: (활용도)관련성,활용도 효과성 낮음 (수요조사)수강인원 부족, 사이버 강의로 대체 가능(통계개발원) | AD22: 교육일수(3→2) | AF22: 4.17~4.18, | AG22: =SUM(AH22:AK22) -> 1274 | AH22: 1274
G23: 국가통계조정관리(2018년 신규) | H23: 초급 | J23: 통계작성기관 | L23: 1 | O23: 3 | R23: 30 | U23: 2 | X23: 60 | Y23: 0 | AA23: 180 | AB23: 0 | AC23: (협의회)교과목 개선요구 (수요조사) 국가승인통계관리 명칭 변경하여 계속 운영(통계조정과) | AD23: 신규 | AF23: 4.11.~4.13, 11.14.~11.16
E24: B-1-2-1-05(15c) | G24: 통계품질 및 관리 | H24: 중급 | I24: 국가통계실무1-4 | J24: 제한없음 | L24: 1 | M24: 1 | O24: 3 | P24: 3 | R24: 30 | S24: 30 | U24: 2 | V24: 2 | X24: 60 | Y24: 60 | AA24: 180 | AB24: 180 | AC24: (협의회)품질관리과 협의 교과목 개편 필요 (수요조사) 교육일정 변경 : 4.23~25, 10.29~31 → 4.8~10 , 10월 1~2주(경제통계국), | AF24: 4.25.~4.27, 10.10.~10.12. | AG24: =SUM(AH24:AK24) -> 2228 | AH24: 1558 | AJ24: 565 | AK24: 105 | AR24: 2016년 부교재 지급 | AS24: 전문1팀
E25: B-1-2-1-06(02c) | G25: 통계기초 및 활용 | H25: 초급 | J25: 제한없음 | L25: 1 | M25: 1 | O25: 5 | P25: 5 | R25: 20 | S25: 25 | U25: 3 | V25: 3 | X25: 60 | Y25: 75 | AA25: 300 | AB25: 375 | AF25: 3.19.~3.23, 5.14~5.18, 11.12.~11.16. | AG25: =SUM(AH25:AK25) -> 7555 | AH25: =3187+3100 -> 6287 | AJ25: 949 | AK25: =210+109 -> 319 | AR25: 전문교재, 2016년 부교재 지급 | AS25: 전문1팀
E26: B-1-2-1-07(17c) | G26: 북한통계의 이해 | H26: 초급 | J26: 제한없음 | L26: 1 | M26: 1 | O26: 3 | P26: 3 | R26: 20 | S26: 20 | U26: 1 | V26: 1 | X26: 20 | Y26: 20 | AA26: 60 | AB26: 60 | AC26: (수요조사)확대 필요(통계정책과) | AE26: 김경아 | AF26: 10.10~10.12. | AG26: =SUM(AH26:AK26) -> 0 | AH26: 0 | AJ26: 0 | AK26: 0 | AR26: 유사과목으로 예산사정
D27: B-1-1-2. 국가통계 기준 | L27: =SUM(L28:L31) -> 4 | M27: =SUM(M28:M31) -> 4 | O27: 8 | P27: 8 | R27: 120 | S27: 120 | U27: 4 | V27: 6 | X27: 120 | Y27: 180 | AA27: 240 | AB27: 420
E28: B-1-2-1-03(06c) | G28: 한국표준산업분류 | H28: 초급 | J28: 제한없음 | L28: 1 | M28: 1 | O28: 3 | P28: 3 | R28: 30 | S28: 30 | U28: 1 | V28: 2 | X28: =R28*U28 -> 30 | Y28: 60 | AA28: =O28*R28*U28 -> 90 | AB28: 180 | AD28: 명칭변경 산업분류, 2회→1회. | AF28: 6.4~6.5 | AG28: =SUM(AH28:AK28) -> 2108 | AH28: 1030 | AJ28: 1078 | AK28: 0 | AS28: 전문1팀
E29: B-1-2-1-04(09c) | G29: 한국표준직업분류 | H29: 초급 | J29: 제한없음 | L29: 1 | M29: 1 | O29: 3 | P29: 3 | R29: 30 | S29: 30 | U29: 1 | V29: 2 | X29: 30 | Y29: 60 | AA29: 90 | AB29: 180 | AD29: 명칭변경 직업분류, 2회→1회 | AF29: 5.14.~5.16 | AG29: 0 | AH29: 0 | AJ29: 0 | AK29: 0 | AS29: 전문1팀
E30: B-1-2-1-10(17c) | G30: 한국표준질병.사인분류 이해 | H30: 초급 | J30: 제한없음 | L30: 1 | M30: 1 | O30: 1 | P30: 1 | R30: 30 | S30: 30 | U30: 1 | V30: 1 | X30: 30 | Y30: 30 | AA30: 30 | AB30: 30 | AF30: 4.24 | AG30: 686 | AH30: 412 | AJ30: 274
E31: B-1-2-1-11(17c) | G31: 한국표준질병.사인분류 활용 | H31: 중급 | I31: 한국표준질병.사인분류 이해 | J31: 제한없음 | L31: 1 | M31: 1 | O31: 1 | P31: 1 | R31: 30 | S31: 30 | U31: 1 | V31: 1 | X31: 30 | Y31: 30 | AA31: 30 | AB31: 30 | AF31: 7.13
C32: B-1-2. 국가통계 실무 | L32: =SUM(L33:L36) -> 4 | M32: =SUM(M33:M36) -> 4 | O32: 16 | P32: 16 | R32: 160 | S32: 160 | U32: 8 | V32: 8 | X32: 320 | Y32: 320 | AA32: 1280 | AB32: 1280 | AD32: 0 | AG32: 18442 | AH32: =SUM(AH33:AH36) -> 9697 | AI32: =SUM(AI33:AI36) -> 990 | AJ32: =SUM(AJ33:AJ36) -> 6133 | AK32: =SUM(AK33:AK36) -> 1622 | AL32: =SUM(AL33:AL36) -> 0
E33: B-1-1-0-01(15c) | G33: 국가통계실무1(조사설계 및 조사표 설계 등) | H33: 초급 | J33: 1기 통계청 2기 제한없음 | L33: 1 | M33: 1 | O33: 4 | P33: 4 | R33: 40 | S33: 40 | U33: 2 | V33: 2 | X33: =R33*U33 -> 80 | Y33: 80 | AA33: =O33*R33*U33 -> 320 | AB33: 320 | AC33: (수요조사)각과정별 3회 확대(경인, 호남) | AD33: 상반기(1기)통계청, 하반기(2기) 제한없음 | AE33: 김경아 | AF33: 2.6~2.9, 9.17.~9.20. | AG33: 6192 | AH33: 3740 | AI33: 530 | AJ33: 1150 | AK33: 772 | AS33: 서유정
E34: B-1-1-0-02(15c) | G34: 국가통계실무2(표본설계 및 추정) | H34: 초급 | J34: 1기 통계청 2기 제한없음 | L34: 1 | M34: 1 | O34: 4 | P34: 4 | R34: 40 | S34: 40 | U34: 2 | V34: 2 | X34: 80 | Y34: 80 | AA34: 320 | AB34: 320 | AC34: 경제활동인구조사 실사기간 아닌 기간 실시(경인) | AE34: 김경아 | AF34: 3.20.~3.23, 10.23.~10.26. | AG34: 3829 | AH34: 1710 | AI34: 10 | AJ34: 1812 | AK34: 297 | AS34: 서유정
E35: B-1-1-0-03(15c) | G35: 국가통계실무3(자료수집ㆍ처리 및 분석) | H35: 초급 | J35: 1기 통계청 2기 제한없음 | L35: 1 | M35: 1 | O35: 4 | P35: 4 | R35: 40 | S35: 40 | U35: 2 | V35: 2 | X35: 80 | Y35: 80 | AA35: 320 | AB35: 320 | AE35: 김경아 | AF35: 4.24.~4.27, 11.6.~11.9. | AG35: 3707 | AH35: 1876 | AI35: 230 | AJ35: 1348 | AK35: 253 | AS35: 서유정
E36: B-1-1-0-04(15c) | G36: 국가통계실무4(통계작성ㆍ공표 등) | H36: 초급 | J36: 1기 통계청 2기 제한없음 | L36: 1 | M36: 1 | O36: 4 | P36: 4 | R36: 40 | S36: 40 | U36: 2 | V36: 2 | X36: 80 | Y36: 80 | AA36: 320 | AB36: 320 | AE36: 김경아 | AF36: 5.29.~6.1, 11.20~11.23. | AG36: 4714 | AH36: 2371 | AI36: 220 | AJ36: 1823 | AK36: 300 | AS36: 서유정
B37: B-2. 통계작성 체계 | L37: =L38 -> 13 | M37: =M38 -> 10 | O37: =O38 -> 41 | P37: 32 | R37: 325 | S37: 240 | U37: 19 | V37: 13 | X37: 515 | Y37: 340 | AA37: 1575 | AB37: 1050 | AG37: =SUM(AH37:AK37) ->  | AH37: =AH38+#REF! ->  | AI37: =AI38+#REF! ->  | AJ37: =AJ38+#REF! ->  | AK37: =AK38+#REF! ->  | AL37: =AL38+#REF! -> 
C38: B-2-1. 통계작성 프로세스 | L38: =L39+L41+L46+L51 -> 13 | M38: =M39+M41+M46+M51 -> 10 | O38: =O39+O41+O46+O51 -> 41 | P38: =P39+P41+P46+P51 -> 32 | R38: =R39+R41+R46+R51 -> 325 | S38: =S39+S41+S46+S51 -> 240 | U38: =U39+U41+U46+U51 -> 19 | V38: =V39+V41+V46+V51 -> 13 | X38: =X39+X41+X46+X51 -> 515 | Y38: =Y39+Y41+Y46+Y51 -> 340 | AA38: =AA39+AA41+AA46+AA51 -> 1575 | AB38: =AB39+AB41+AB46+AB51 -> 1050 | AG38: 732847 | AH38: =AH17+AH39+AH41+AH46+AH65+AH51+AH71 -> 511013 | AI38: =AI17+AI39+AI41+AI46+AI65+AI51+AI71 -> 56580 | AJ38: =AJ17+AJ39+AJ41+AJ46+AJ65+AJ51+AJ71 -> 100668 | AK38: =AK17+AK39+AK41+AK46+AK65+AK51+AK71 -> 64586 | AL38: =AL17+AL39+AL41+AL46+AL65+AL51+AL71 -> 0
D39: B-2-1-1. 조사설계 | L39: =L40 -> 1 | M39: 1 | O39: 4 | P39: 4 | R39: 20 | S39: 20 | U39: 1 | V39: 1 | X39: 20 | Y39: 20 | AA39: 80 | AB39: 80 | AG39: 2544 | AH39: 2268 | AI39: 0 | AJ39: 233 | AK39: 43 | AL39: 0
E40: B-1-2-2-01(09c) | G40: 표본실무 | H40: 초급 | J40: 제한없음 | L40: 1 | M40: 1 | O40: 4 | P40: 4 | R40: 20 | S40: 20 | U40: 1 | V40: 1 | X40: =R40*U40 -> 20 | Y40: =S40*V40 -> 20 | AA40: =O40*R40*U40 -> 80 | AB40: =P40*S40*V40 -> 80 | AD40: 유지, 표본이론 및 실무 명칭변경 중급→초급 | AF40: 10.22.~10.25. | AG40: 2544 | AH40: 2268 | AJ40: 233 | AK40: 43 | AS40: 전문1팀
D41: B-2-1-2. 자료수집 | L41: =SUM(L42:L45) -> 4 | M41: =SUM(M42:M45) -> 1 | O41: =SUM(O42:O45) -> 12 | P41: =SUM(P42:P45) -> 3 | R41: =SUM(R42:R45) -> 110 | S41: =SUM(S42:S45) -> 30 | U41: =SUM(U42:U45) -> 7 | V41: =SUM(V42:V45) -> 2 | X41: =SUM(X42:X45) -> 190 | Y41: =SUM(Y42:Y45) -> 60 | AA41: =SUM(AA42:AA45) -> 570 | AB41: =SUM(AB42:AB45) -> 180 | AD41: =SUM(AD42:AD42) -> 0 | AG41: 6756 | AH41: =SUM(AH42:AH42) -> 4336 | AI41: =SUM(AI42:AI42) -> 0 | AJ41: =SUM(AJ42:AJ42) -> 1943 | AK41: =SUM(AK42:AK42) -> 477 | AL41: =SUM(AL42:AL42) -> 0
E42: B-1-2-3-03(14c) | G42: 통계조사관 직무연수 | H42: 초급 | J42: 통계청 | L42: 1 | M42: 1 | O42: 3 | P42: 3 | R42: 30 | S42: 30 | U42: 2 | V42: 2 | X42: =R42*U42 -> 60 | Y42: 60 | AA42: =O42*R42*U42 -> 180 | AB42: 180 | AC42: (협의회)엑셀등 기초전산교육시간 확대 (검토의견) 현장조사 스킬 등 업무 관련 내용 확대/엑셀시간 조정 교육일자를 월초, 월말로 조정 | AF42: 2.5.~2.7, 9.17.~9.19. | AG42: 6756 | AH42: 4336 | AJ42: 1943 | AK42: 477 | AR42: 전문교재 | AS42: 전문1팀
G43: 조사행정 역량향상(2018년 신규) | H43: 초급 | J43: 통계청 | L43: 1 | O43: 3 | P43: 0 | R43: 30 | U43: 2 | X43: 60 | Y43: 0 | AA43: 180 | AB43: 0 | AC43: (수요조사)확대 필요 교육기간 연장 필요: 3일 →4일(경인) 교육일정 변경 : 3월 3째, 10월 4째 → 6월4째, 9월 2째(조사기획과) 10월 넷째주 수목금→9월 둘째주 화수목금(4일) (경인) 3월 3째, 10월 4째 → 2월, 8월(호남) 교육과정 세분화 : 서무, 회계 등 세분화(경인, 호남) | AD43: 신규 | AF43: 3.14~3.16, 10.24~10.26.
G44: 멀티현장전문가 역량향상(2018년 신규) | H44: 중급 | I44: 국가통계실무1-4 | J44: 통계청 | L44: 1 | O44: 3 | P44: 0 | R44: 30 | U44: 1 | X44: 30 | Y44: 0 | AA44: 90 | AB44: 0 | AC44: (수요조사)축소 필요 : 2회 →1회(동남) (수요조사)교육일정 변경 : 9월 2째주 →3월 2째(조사기획과) | AD44: 신규 | AF44: 3.26.~3.28, 9.12~9.14
G45: 지역통계 실무(2018년 신규) | H45: 초급 | J45: 제한없음 | L45: 1 | O45: 3 | P45: 0 | R45: 20 | U45: 2 | X45: =R45*U45 -> 40 | Y45: =S45*V45 -> 0 | AA45: =O45*R45*U45 -> 120 | AB45: =P45*S45*V45 -> 0 | AC45: (협의회)호남청외 교육신청자 없음 검토 필요 (수요조사)축소 필요 : 2회 →1회(충청) | AD45: 신규 | AF45: 3.26.~3.28, 9.12~9.14
D46: B-2-1-3. 자료처리 및 분석 | L46: =SUM(L47:L50) -> 4 | M46: =SUM(M47:M50) -> 4 | O46: =SUM(O47:O50) -> 13 | P46: =SUM(P47:P50) -> 13 | R46: =SUM(R47:R50) -> 85 | S46: =SUM(S47:S50) -> 80 | U46: =SUM(U47:U50) -> 4 | V46: =SUM(V47:V50) -> 4 | X46: =SUM(X47:X50) -> 85 | Y46: =SUM(Y47:Y50) -> 80 | AA46: =SUM(AA47:AA50) -> 265 | AB46: =SUM(AB47:AB50) -> 250 | AD46: =SUM(AD48:AD48) -> 0 | AG46: =SUM(AH46:AK46) -> 1576 | AH46: =SUM(AH48:AH48) -> 1170 | AI46: =SUM(AI48:AI48) -> 0 | AJ46: =SUM(AJ48:AJ48) -> 286 | AK46: =SUM(AK48:AK48) -> 120 | AL46: =SUM(AL48:AL48) -> 0
E47: B-1-2-3-01(06c) | G47: 계절조정실무 | H47: 중급 | I47: 국가통계실무1-4, SAS입문 | J47: 통계청 | L47: 1 | M47: 1 | O47: 2 | P47: 2 | R47: 30 | S47: 30 | U47: 1 | V47: 1 | X47: =R47*U47 -> 30 | Y47: 30 | AA47: =O47*R47*U47 -> 60 | AB47: 60 | AD47: 유지 | AF47: 1.11~1.12. | AG47: =SUM(AH47:AK47) -> 2422 | AH47: 1432 | AJ47: 703 | AK47: 287 | AS47: 전문1팀
E48: B-1-2-4-01(12c) | G48: 데이터 에디팅 | H48: 중급 | I48: 국가통계실무1-5, SAS입문 | J48: 제한없음 | L48: 1 | M48: 1 | O48: 4 | P48: 3 | R48: 20 | S48: 15 | U48: 1 | V48: 1 | X48: 20 | Y48: 15 | AA48: 80 | AB48: 45 | AD48: 명칭변경 에디팅 교육일수(3→4), 인원(15→20) | AF48: 4.10.~4.13. | AG48: 1576 | AH48: 1170 | AJ48: 286 | AK48: 120 | AS48: 빅데이터
E49: B-1-2-3-01(07c) | G49: 시계열분석 | H49: 중급 | I49: 통계기초 및 활용 한국표준산업분류 | J49: 제한없음 | L49: 1 | M49: 1 | O49: 4 | P49: 5 | R49: 20 | S49: 20 | U49: 1 | V49: 1 | X49: 20 | Y49: 20 | AA49: 80 | AB49: 100 | AC49: (협의회)시계열분석의이론과실습으로 5일 과정운영 (활용도)관련성,효과성 낮게 나옴 | AD49: 고급→중급, 교육일수(5→4) | AF49: 4.11~4.13. | AG49: 4750 | AH49: 4100 | AI49: 0 | AJ49: 504 | AK49: 146 | AS49: 전문1팀
E50: B-1-2-3-01(08c) | G50: 지수이론 | H50: 중급 | I50: 국가통계실무1-4, SAS입문 | J50: 제한없음 | L50: 1 | M50: 1 | O50: 3 | P50: 3 | R50: 15 | S50: 15 | U50: 1 | V50: 1 | X50: 15 | Y50: 15 | AA50: 45 | AB50: 45 | AD50: 유지 | AF50: 7.9~7.11. | AG50: 2812 | AH50: 2266 | AJ50: 412 | AK50: 134 | AR50: 2016년 폐강 | AS50: 전문1팀
D51: B-2-1-4. 공표 및 관리 | L51: =SUM(L52:L55) -> 4 | M51: =SUM(M52:M55) -> 4 | O51: 12 | P51: 12 | R51: 110 | S51: 110 | U51: 7 | V51: 6 | X51: 220 | Y51: 180 | AA51: 660 | AB51: 540 | AD51: 0 | AG51: 12984 | AH51: =SUM(AH52:AH55) -> 7835 | AI51: =SUM(AI52:AI55) -> 0 | AJ51: =SUM(AJ52:AJ55) -> 4718 | AK51: =SUM(AK52:AK55) -> 431 | AL51: =SUM(AL52:AL55) -> 0
E52: B-1-2-6-04(01c) | G52: 국가통계정보의 활용 | H52: 초급 | J52: 제한없음 | L52: 1 | M52: 1 | O52: 3 | P52: 3 | R52: 20 | S52: 20 | U52: 1 | V52: 1 | X52: =R52*U52 -> 20 | Y52: 20 | AA52: =O52*R52*U52 -> 60 | AB52: 60 | AF52: 3.7.~3.9. | AG52: 2062 | AH52: 1380 | AJ52: 682 | AK52: 0 | AS52: 전문1팀
E53: B-1-2-6-01(11c) | G53: 매스킹기법 | H53: 중급 | I53: 국가통계실무1-4, SAS입문 | J53: 제한없음 | L53: 1 | M53: 1 | O53: 3 | P53: 3 | R53: 20 | S53: 20 | U53: 1 | V53: 1 | X53: 20 | Y53: 20 | AA53: 60 | AB53: 60 | AD53: 유지 | AF53: 6.18~6.20. | AG53: 1764 | AH53: 1490 | AI53: 0 | AJ53: 274 | AK53: 0 | AS53: 빅데이터
E54: B-1-2-6-03(15c) | G54: 오피스를 활용한 데이터 시각화 | H54: 중급 | I54: 국가통계실무1-4 | J54: 제한없음 | L54: 1 | M54: 1 | O54: 3 | P54: 3 | R54: 40 | S54: 40 | U54: 3 | V54: 2 | X54: 120 | Y54: 80 | AA54: 360 | AB54: 240 | AC54: (수요조사)교육회차 확대 필요(경인) (활용도)교육기간 연장 필요 : 3일 →5일(경인) | AD54: 수강생에 대한 사전조사. 횟수(2→3) | AF54: 3.12.~3.14. 7.18.~7.20, 9.12.~9.14. | AG54: 6416 | AH54: 3192 | AJ54: 2867 | AK54: 357 | AS54: 전문1팀
E55: B-1-2-6-02(10c) | G55: 통계보고서 작성 | H55: 중급 | I55: 국가통계실무1-4 | J55: 제한없음 | L55: 1 | M55: 1 | O55: 3 | P55: 3 | R55: 30 | S55: 30 | U55: 2 | V55: 2 | X55: 60 | Y55: 60 | AA55: 180 | AB55: 180 | AD55: 유지 | AF55: 5.9~5.11, 10.16.~10.18. | AG55: 2742 | AH55: 1773 | AJ55: 895 | AK55: 74 | AR55: 전문교재 | AS55: 전문1팀
B56: B-3. 통계작성 | L56: =L57+L61+L65 -> 10 | M56: =M57+M61+M65 -> 9 | O56: 28 | P56: 25 | R56: 220 | S56: 195 | U56: 13 | V56: 13 | X56: 310 | Y56: 305 | AA56: 890 | AB56: 895 | AD56: =AD57+AD61 -> 0 | AG56: 20945 | AH56: =AH57+AH61 -> 13669 | AI56: =AI57+AI61 -> 0 | AJ56: =AJ57+AJ61 -> 5402 | AK56: =AK57+AK61 -> 1874 | AL56: =AL57+AL61 -> 0
C57: B-3-1. 경제분야 | L57: =SUM(L58:L60) -> 3 | M57: =SUM(M58:M60) -> 3 | O57: 9 | P57: 8 | R57: 70 | S57: 65 | U57: 5 | V57: 5 | X57: 130 | Y57: 125 | AA57: 390 | AB57: 355 | AD57: 0 | AG57: 11453 | AH57: =SUM(AH58:AH60) -> 7853 | AI57: =SUM(AI58:AI60) -> 0 | AJ57: =SUM(AJ58:AJ60) -> 2680 | AK57: =SUM(AK58:AK60) -> 920 | AL57: =SUM(AL58:AL60) -> 0
E58: B-2-1-0-04(16c) | G58: 경제통계의 이해 | H58: 중급 | I58: 국가통계의 이해,국가통계실무1-4 | J58: 제한없음 | L58: 1 | M58: 1 | O58: 3 | P58: 2 | R58: 20 | S58: 20 | U58: 1 | V58: 1 | X58: =R58*U58 -> 20 | Y58: 20 | AA58: =O58*R58*U58 -> 60 | AB58: 40 | AD58: 명칭변경 경제통계의 이해 | AF58: 9.3.~9.5. | AG58: 1635 | AH58: 1257 | AJ58: 306 | AK58: 72 | AS58: 전문1팀
E59: B-2-1-0-03(07c) | G59: 국민계정 | H59: 중급 | I59: 국가통계의 이해,국가통계실무1-4 | J59: 제한없음 | L59: 1 | M59: 1 | O59: 3 | P59: 3 | R59: 20 | S59: 15 | U59: 1 | V59: 1 | X59: 20 | Y59: 15 | AA59: 60 | AB59: 45 | AD59: 유지 | AF59: 11.5.~11.7. | AG59: 0 | AH59: 0 | AJ59: 0 | AK59: 0 | AS59: 전문1팀
E60: B-2-1-0-02(03c) | G60: 재무제표 | H60: 중급 | I60: 국가통계의 이해,국가통계실무1-4 | J60: 제한없음 | L60: 1 | M60: 1 | O60: 3 | P60: 3 | R60: 30 | S60: 30 | U60: 3 | V60: 3 | X60: 90 | Y60: 90 | AA60: 270 | AB60: 270 | AC60: (수요조사)중급, 고급 과정 개설 요청(건강보험공단) | AD60: 유지 | AF60: 2.20.~2.22, 7.25~7.27, 9.5.~9.7. | AG60: 9818 | AH60: 6596 | AJ60: 2374 | AK60: 848 | AS60: 전문1팀
C61: B-3-2. 사회분야 | L61: =SUM(L62:L64) -> 3 | M61: =SUM(M62:M64) -> 3 | O61: =SUM(O62:O64) -> 9 | P61: 8 | R61: 60 | S61: 60 | U61: 3 | V61: 4 | X61: 60 | Y61: 80 | AA61: 180 | AB61: 240 | AD61: 0 | AG61: 9492 | AH61: =SUM(AH62:AH64) -> 5816 | AI61: =SUM(AI62:AI64) -> 0 | AJ61: =SUM(AJ62:AJ64) -> 2722 | AK61: =SUM(AK62:AK64) -> 954 | AL61: =SUM(AL62:AL64) -> 0
E62: B-2-2-0-03(15c) | G62: 농어업통계의 이해 | H62: 중급 | I62: 국가통계의 이해,국가통계실무1-4 | J62: 제한없음 | L62: 1 | M62: 1 | O62: 3 | P62: 4 | R62: 20 | S62: 20 | U62: 1 | V62: 2 | X62: =R62*U62 -> 20 | Y62: 40 | AA62: =O62*R62*U62 -> 60 | AB62: 160 | AD62: 교육일수(4→3),교육횟수(2→1) | AF62: 6.18~6.20. | AG62: 5692 | AH62: 3416 | AJ62: 1638 | AK62: 638 | AS62: 전문1팀
E63: B-2-2-0-06(16c) | G63: 사회통계의 이해 | H63: 중급 | I63: 국가통계의 이해,국가통계실무1-4 | J63: 제한없음 | L63: 1 | M63: 1 | O63: 3 | P63: 2 | R63: 20 | S63: 20 | U63: 1 | V63: 1 | X63: 20 | Y63: 20 | AA63: 60 | AB63: 40 | AD63: 명칭변경 사회통계의 이해,교육일수(2→3) | AF63: 7.25.~7.27, | AG63: 2058 | AH63: 1300 | AJ63: 600 | AK63: 158 | AS63: 전문1팀
E64: B-2-2-0-08(16c) | G64: 인구통계의 이해 | H64: 중급 | I64: 국가통계의 이해,국가통계실무1-4 | J64: 제한없음 | L64: 1 | M64: 1 | O64: 3 | P64: 2 | R64: 20 | S64: 20 | U64: 1 | V64: 1 | X64: 20 | Y64: 20 | AA64: 60 | AB64: 40 | AD64: 명칭변경 인구통계의 이해교육일수(2→3) | AF64: 4.16.~4.18. | AG64: 1742 | AH64: 1100 | AJ64: 484 | AK64: 158 | AS64: 전문1팀
C65: B-1-3. 빅데이터 | L65: =SUM(L66:L69) -> 4 | M65: =SUM(M66:M69) -> 3 | O65: =SUM(O66:O69) -> 10 | P65: =SUM(P66:P69) -> 9 | R65: =SUM(R66:R69) -> 90 | S65: =SUM(S66:S69) -> 70 | U65: =SUM(U66:U69) -> 5 | V65: =SUM(V66:V69) -> 4 | X65: =SUM(X66:X69) -> 120 | Y65: =SUM(Y66:Y69) -> 100 | AA65: =SUM(AA66:AA69) -> 320 | AB65: =SUM(AB66:AB69) -> 300 | AD65: =SUM(AD47:AD50) -> 0 | AG65: 11560 | AH65: =SUM(AH47:AH50) -> 8968 | AI65: =SUM(AI47:AI50) -> 0 | AJ65: =SUM(AJ47:AJ50) -> 1905 | AK65: =SUM(AK47:AK50) -> 687 | AL65: =SUM(AL47:AL50) -> 0
E66: B-1-2-3-04(16c) | G66: 빅데이터와 행정자료의 이해 | H66: 초급 | J66: 통계청 | L66: 1 | M66: 1 | O66: 3 | P66: 3 | R66: 30 | S66: 30 | U66: 2 | V66: 2 | X66: =R66*U66 -> 60 | Y66: 60 | AA66: =O66*R66*U66 -> 180 | AB66: 180 | AC66: (수요조사)일정변경 : 2.21~,23, 6.20~.22 → 5.8~10, 6월 1~2주(경제통계국) | AF66: 2.21.~2.23, 6.20~6.22 | AG66: 8649 | AH66: 5246 | AI66: 250 | AJ66: 2688 | AK66: 465 | AS66: 빅데이터
E67: B-1-2-3-05(16c) | G67: 빅데이터 실무기술 | H67: 중급 | I67: 빅데이터와행정자료의이해, R,초급통계분석 | J67: 제한없음 | L67: 1 | M67: 1 | O67: 3 | P67: 3 | R67: 20 | S67: 20 | U67: 1 | V67: 1 | X67: 20 | Y67: 20 | AA67: 60 | AB67: 60 | AF67: 8.20.~8.22, | AG67: 5327 | AH67: 4482 | AJ67: 585 | AK67: 260 | AS67: 빅데이터
G68: 데이터기반정책수립 | H68: 중급 | J68: 제한없음 | L68: 1 | O68: 1 | R68: 20 | U68: 1 | X68: 20 | Y68: 0 | AA68: 20 | AB68: 0 | AD68: 신규 | AF68: 9.4.~9.5.
E69: B-1-2-3-06(10c) | G69: 행정자료 통계 작성 | H69: 고급 | I69: 빅데이터실무기술 | J69: 제한없음 | L69: 1 | M69: 1 | O69: 3 | P69: 3 | R69: 20 | S69: 20 | U69: 1 | V69: 1 | X69: 20 | Y69: 20 | AA69: 60 | AB69: 60 | AC69: (협의회)행정자료관리과, 행정통계과 협의 개편필요 SAS 입문 과정 선행 이수 필요 | AD69: 대상(통계청→제한없음) | AF69: 5.9~5.11, | AG69: =SUM(AH69:AK69) -> 3144 | AH69: 2288 | AJ69: 715 | AK69: 141 | AS69: 빅데이터
B70: B-4. 통계패키지 | L70: =L71+L77+L81+L84 -> 12 | M70: =M71+M77+M81+M84 -> 11 | O70: 44 | P70: 39 | R70: 350 | S70: 310 | U70: 27 | V70: 23 | X70: 800 | Y70: 680 | AA70: 2920 | AB70: 2560 | AG70: =SUM(AH70:AK70) -> 665119 | AH70: =AH71+AH73 -> 464290 | AI70: =AI71+AI73 -> 56160 | AJ70: =AJ71+AJ73 -> 84769 | AK70: =AK71+AK73 -> 59900 | AL70: =AL71+AL73 -> 0
C71: B-4-1. R | L71: =SUM(L72:L76) -> 5 | M71: =SUM(M72:M76) -> 4 | O71: 15 | P71: 10 | R71: 150 | S71: 100 | U71: 12 | V71: 8 | X71: 360 | Y71: 220 | AA71: 1080 | AB71: 620 | AD71: =SUM(AD76:AD86) -> 0 | AG71: =SUM(AH71:AK71) -> 665119 | AH71: =SUM(AH76:AH86) -> 464290 | AI71: =SUM(AI76:AI86) -> 56160 | AJ71: =SUM(AJ76:AJ86) -> 84769 | AK71: =SUM(AK76:AK86) -> 59900 | AL71: =SUM(AL76:AL86) -> 0
E72: B-3-0-0-08(15c) | G72: R 입문 | H72: 초급 | J72: 제한없음 | L72: 1 | M72: 1 | O72: 3 | P72: 3 | R72: 30 | S72: 30 | U72: 4 | V72: 3 | X72: =R72*U72 -> 120 | Y72: 90 | AA72: =O72*R72*U72 -> 360 | AB72: 270 | AD72: 교육횟수(3→4) R프로그래밍 활용 명칭 변경 | AF72: 3.5~3.7, 5.1~5.3, 7.9~7.11, 9.10~9.12. | AG72: =SUM(AH72:AK72) -> 9000 | AH72: 7110 | AJ72: 1080 | AK72: 810 | AS72: 빅데이터
E73: B-3-0-0-07(12c) | G73: R 초급통계분석 | H73: 초급 | J73: 제한없음 | L73: 1 | M73: 1 | O73: 3 | P73: 3 | R73: 30 | S73: 30 | U73: 4 | V73: 3 | X73: 120 | Y73: 90 | AA73: 360 | AB73: 270 | AC73: (협의회)실습 위주 내용편성 필요 | AD73: R을활용한 통계분석 명칭변경 중급→초급 | AF73: 4.2.~4.4, 5.28~5.30, 8.27~8.29. 10.10.~10.12.
E74: B-3-0-0-10(17c) | G74: R 데이터시각화 | H74: 초급 | J74: 제한없음 | L74: 1 | M74: 1 | O74: 3 | P74: 2 | R74: 30 | S74: 20 | U74: 2 | V74: 1 | X74: 60 | Y74: 20 | AA74: 180 | AB74: 40 | AD74: 중급→초급,교육일수((2→3) 교육횟수(1→2) 협의회 같음 R활용한 명칭변경 | AF74: 5.23~5.25, 8.27.~8.29. | AG74: =SUM(AH74:AK74) -> 2680 | AH74: 2100 | AJ74: 460 | AK74: 120 | AS74: 빅데이터
G75: R 중급통계분석 | H75: 중급 | J75: 제한없음 | L75: 1 | M75: 0 | O75: 3 | P75: 0 | R75: 30 | S75: 0 | U75: 1 | V75: 0 | X75: =R75*U75 -> 30 | Y75: 0 | AA75: 90 | AB75: 0 | AD75: 신규 | AF75: 6.25~6.27. | AG75: =SUM(AH75:AK75) -> 10173 | AH75: 7473 | AJ75: 1890 | AK75: 810 | AS75: 빅데이터
E76: B-3-0-0-09(17c) | G76: R 고급통계분석 | H76: 고급 | I76: R중급통계분석 | J76: 제한없음 | L76: 1 | M76: 1 | O76: 3 | P76: 2 | R76: 30 | S76: 20 | U76: 1 | V76: 1 | X76: =R76*U76 -> 30 | Y76: =S76*V76 -> 20 | AA76: 90 | AB76: 40 | AD76: 교육일수(2→3) 협의회 같음 교육인원 확대(20→30) 명칭변경, R을 활용한 데이터마이닝 | AF76: 9.17.~9.19. | AG76: =SUM(AH76:AK76) -> 2720 | AH76: 2100 | AJ76: 500 | AK76: 120 | AS76: 빅데이터
C77: B-4-2. SAS | L77: =SUM(L78:L80) -> 3 | M77: =SUM(M78:M80) -> 3 | O77: 13 | P77: 13 | R77: 70 | S77: 80 | U77: 6 | V77: 6 | X77: 140 | Y77: 160 | AA77: 580 | AB77: 680 | AD77: =SUM(AD79:AD91) -> 0 | AG77: =SUM(AH77:AK77) -> 336716 | AH77: =SUM(AH79:AH91) -> 236226 | AI77: =SUM(AI79:AI91) -> 30240 | AJ77: =SUM(AJ79:AJ91) -> 40405 | AK77: =SUM(AK79:AK91) -> 29845 | AL77: =SUM(AL79:AL91) -> 0
E78: B-3-0-0-01(95c) | G78: SAS 입문 | H78: 초급 | J78: 제한없음 | L78: 1 | M78: 1 | O78: 3 | P78: 3 | R78: 30 | S78: 30 | U78: 2 | V78: 2 | X78: =R78*U78 -> 60 | Y78: 60 | AA78: =O78*R78*U78 -> 180 | AB78: 180 | AD78: 명칭변경, SAS 프로그래밍 활용 | AE78: 김경아 | AF78: 5.9.~5.11, 9.5.~9.7. | AG78: =SUM(AH78:AK78) -> 9845 | AH78: 4608 | AJ78: 4427 | AK78: 810 | AS78: 서유정
E79: B-3-0-0-06(10c) | G79: SAS 중급통계분석 | H79: 중급 | I79: 국가통계실무1-4,SAS입문 | J79: 제한없음 | L79: 1 | M79: 1 | O79: 5 | P79: 5 | R79: 20 | S79: 25 | U79: 2 | V79: 2 | X79: 40 | Y79: 50 | AA79: 200 | AB79: 250 | AD79: 명칭변경, SAS 대용량자료처리 | AE79: 김경아 | AF79: 3.5~3.9, 7.16.~7.20, | AG79: 11673 | AH79: 9948 | AJ79: 1050 | AK79: 675 | AS79: 서유정
E80: B-3-0-0-03(00c) | G80: SAS 고급통계분석 | H80: 고급 | I80: SAS 중급통계분석 | J80: 제한없음 | L80: 1 | M80: 1 | O80: 5 | P80: 5 | R80: 20 | S80: 25 | U80: 2 | V80: 2 | X80: 40 | Y80: 50 | AA80: 200 | AB80: 250 | AD80: 명칭변경, SAS 자료분석 | AE80: 김경아 | AF80: 6.18.~6.22, 10.29.~11.2. | AG80: 9007 | AH80: 7124 | AJ80: 1133 | AK80: 750 | AS80: 서유정
C81: B-4-3. SPSS | L81: =SUM(L82:L83) -> 2 | M81: =SUM(M82:M83) -> 2 | O81: 8 | P81: 8 | R81: 60 | S81: 60 | U81: 4 | V81: 4 | X81: 120 | Y81: 120 | AA81: 480 | AB81: 480 | AD81: =SUM(AD83:AD95) -> 0 | AG81: =SUM(AH81:AK81) -> 175902 | AH81: =SUM(AH83:AH95) -> 121964 | AI81: =SUM(AI83:AI95) -> 17280 | AJ81: =SUM(AJ83:AJ95) -> 20810 | AK81: =SUM(AK83:AK95) -> 15848 | AL81: =SUM(AL83:AL95) -> 0
E82: B-3-0-0-02(99c) | G82: SPSS 초급통계분석 | H82: 초급 | J82: 제한없음 | L82: 1 | M82: 1 | O82: 3 | P82: 3 | R82: 30 | S82: 30 | U82: 2 | V82: 2 | X82: =R82*U82 -> 60 | Y82: =S82*V82 -> 60 | AA82: =O82*R82*U82 -> 180 | AB82: =P82*S82*V82 -> 180 | AD82: 명칭변경 SPSS 통계활용, 중급→초급 | AE82: 김경아 | AF82: 3.14~3.16, 7.2~7.4, | AG82: =SUM(AH82:AK82) -> 5580 | AH82: 3540 | AJ82: 1500 | AK82: 540 | AS82: 서유정
E83: B-3-0-0-04(00c) | G83: SPSS 중급통계분석 | H83: 중급 | I83: 국가통계실무1-4, SPSS 초급통계분석 | J83: 제한없음 | L83: 1 | M83: 1 | O83: 5 | P83: 5 | R83: 30 | S83: 30 | U83: 2 | V83: 2 | X83: =R83*U83 -> 60 | Y83: =S83*V83 -> 60 | AA83: =O83*R83*U83 -> 300 | AB83: =P83*S83*V83 -> 300 | AC83: (협의회)중급자 교육생 선발 필요 | AD83: 명칭변경, SPSS 자료분석 | AE83: 김경아 | AF83: 2.19~2.23. 11.26.~11.30. | AG83: 10660 | AH83: 8360 | AJ83: 1500 | AK83: 800 | AS83: 서유정
C84: B-4-4. 엑셀 | L84: =SUM(L85:L86) -> 2 | M84: =SUM(M85:M86) -> 2 | O84: 8 | P84: 8 | R84: 70 | S84: 70 | U84: 5 | V84: 5 | X84: 180 | Y84: 180 | AA84: 780 | AB84: 780 | AD84: =SUM(AD86:AD97) -> 0 | AG84: =SUM(AH84:AK84) -> 88563 | AH84: =SUM(AH86:AH97) -> 60851 | AI84: =SUM(AI86:AI97) -> 8640 | AJ84: =SUM(AJ86:AJ97) -> 10900 | AK84: =SUM(AK86:AK97) -> 8172 | AL84: =SUM(AL86:AL97) -> 0
E85: B-5-0-0-03(15c) | G85: 엑셀 초급 | H85: 초급 | J85: 제한없음 | L85: 1 | M85: 1 | O85: 5 | P85: 5 | R85: 40 | S85: 40 | U85: 3 | V85: 3 | X85: =R85*U85 -> 120 | Y85: =S85*V85 -> 120 | AA85: =O85*R85*U85 -> 600 | AB85: =P85*S85*V85 -> 600 | AD85: 명칭변경 엑셀 활용 중급→초급 | AE85: 김경아 | AF85: 3.26.~3.30. 9.3~9.7, 10.15.~10.19. | AG85: =SUM(AH85:AK85) -> 8586 | AH85: 5346 | AJ85: 1440 | AK85: 1800 | AS85: 서유정
E86: B-3-0-0-05(00c) | G86: 엑셀 중급 | H86: 중급 | I86: 엑셀초급 | J86: 제한없음 | L86: 1 | M86: 1 | O86: 3 | P86: 3 | R86: 30 | S86: 30 | U86: 2 | V86: 2 | X86: =R86*U86 -> 60 | Y86: =S86*V86 -> 60 | AA86: =O86*R86*U86 -> 180 | AB86: =P86*S86*V86 -> 180 | AC86: (협의회)제목과 교육내용이 다름(엑셀 통계분석) | AD86: 명칭변경 엑셀 통계분석 | AE86: 김경아 | AF86: 2.26~2.28. 11.5~11.7 | AG86: 5867 | AH86: 4223 | AJ86: 1104 | AK86: 540 | AS86: 서유정
B87: B-5. 전문관 양성 (* 7개 과정 중 2개 과정 운영) | L87: =SUM(L88:L94) -> 2 | M87: 2 | O87: 0 | P87: 0 | R87: 0 | S87: 0 | U87: 2 | V87: 2 | X87: 20 | Y87: 20 | AA87: =SUM(AA88:AA94) -> 240 | AB87: =SUM(AB88:AB94) -> 240 | AG87: 20878 | AH87: =SUM(AH88:AH94) -> 14870 | AI87: =SUM(AI88:AI94) -> 4320 | AJ87: =SUM(AJ88:AJ94) -> 968 | AK87: =SUM(AK88:AK94) -> 720 | AL87: =SUM(AL88:AL94) -> 0
E88: B-4-0-0-05(12c) | G88: 경제시계열분석 및 지수이론(2017년) | H88: 고급 | I88: 시계열분석, 지수이론 | J88: 통계청 | M88: 1 | O88: 14주 | P88: 14주 | R88: 10 | S88: 10 | U88: 1 | V88: 1 | X88: 10 | Y88: =S88*V88 -> 10 | AA88: 120 | AB88: 120 | AD88: 수요조사 및 관련부서 협의 후에 운영과정 선정 | AG88: 0
E89: B-4-0-0-04(11c) | G89: 국민계정(2017년) | H89: 고급 | I89: 경제통계의이해, 국민계정 | J89: 통계청 | M89: 1 | O89: 12주 | P89: 12주 | R89: 10 | S89: 10 | U89: 1 | V89: 1 | X89: 10 | Y89: 10 | AA89: 120 | AB89: 120 | AG89: 0
E90: B-4-0-0-07(16c) | G90: 등록센서스 | H90: 고급 | I90: 인국통계의 이해 | J90: 통계청 | O90: 12주 | P90: 12주 | R90: 10 | S90: 10 | X90: =R90*U90 -> 0 | Y90: 0 | AC90: (수요조사)폐지 요청(인구총조사과) | AG90: 0
E91: B-4-0-0-01(10c) | G91: 무응답 자료처리 및 분석 | H91: 고급 | I91: 데이터데이팅 | J91: 통계청 | O91: 12주 | P91: 12주 | R91: 10 | S91: 10 | X91: =R91*U91 -> 0 | Y91: 0 | AG91: 0
E92: B-4-0-0-02(10c) | G92: 인구통계분석(2018) | H92: 고급 | I92: 인국통계의 이해 | J92: 통계청 | L92: 1 | O92: 12주 | P92: 12주 | R92: 10 | S92: 10 | V92: 0 | X92: =R92*U92 -> 0 | Y92: 0 | AA92: 0 | AG92: 10439 | AH92: 7435 | AI92: 2160 | AJ92: 484 | AK92: 360 | AR92: 2017년 교육시간 확대 | AS92: 전문1팀
E93: B-4-0-0-06(14c) | G93: 통계분류 | H93: 고급 | I93: 한국표준산업,직업분류 국가통계실무1-4 한국질병사인분류활용 | J93: 통계청 | O93: 12주 | P93: 12주 | R93: 10 | S93: 10 | X93: =R93*U93 -> 0 | Y93: 0 | AC93: (수요조사)주기적 개설 필요(통계기준과) | AG93: 0
E94: B-4-0-0-03(10c) | G94: 표본설계 및 추정(2018년) | H94: 고급 | I94: 표본실무 | J94: 통계청 | L94: 1 | O94: 12주 | P94: 12주 | R94: 10 | S94: 10 | V94: 0 | X94: =R94*U94 -> 0 | Y94: 0 | AA94: 0 | AC94: (수요조사)교육대상 표본과 표본설계 실무자 우선 선발, 국가통계실무2, SAS고급통계분석 등 필수 선이수(표본과) | AG94: 10439 | AH94: 7435 | AI94: 2160 | AJ94: 484 | AK94: 360 | AS94: 전문1팀
B95: B-6. 정보화 | L95: =SUM(L96:L98) -> 3 | M95: =SUM(M96:M98) -> 3 | O95: 12 | P95: 11 | R95: 110 | S95: 110 | U95: 8 | V95: 8 | X95: 310 | Y95: 310 | AA95: 1150 | AB95: 990 | AG95: 20470 | AH95: =SUM(AH96:AH97) -> 13444 | AI95: =SUM(AI96:AI97) -> 0 | AJ95: =SUM(AJ96:AJ97) -> 3930 | AK95: =SUM(AK96:AK97) -> 3096 | AL95: =SUM(AL96:AL97) -> 0
E96: B-5-0-0-02(10c) | G96: 스마트 문서편집 | H96: 초급 | J96: 제한없음 | L96: 1 | M96: 1 | O96: 4 | P96: 3 | R96: 40 | S96: 40 | U96: 4 | V96: 4 | X96: =R96*U96 -> 160 | Y96: 160 | AA96: =O96*R96*U96 -> 640 | AB96: 480 | AD96: 교육일수(3→4) | AE96: 김경아 | AF96: 4.2.~4.5, 6.25~6.28, 8.27~8.30, 9.10.~9.13, | AG96: 10894 | AH96: 8044 | AJ96: 1050 | AK96: 1800 | AS96: 서유정
E97: B-5-0-0-04(15c) | G97: 파워포인트 활용 | H97: 초급 | J97: 제한없음 | L97: 1 | M97: 1 | O97: 3 | P97: 3 | R97: 40 | S97: 40 | U97: 3 | V97: 3 | X97: 120 | Y97: 120 | AA97: 360 | AB97: 360 | AC97: (수요조사)교육기간 연장 필요(건강보험공단) | AD97: 중급→초급 | AF97: 3.28~3.30, 7.4~7.6, 10.31~11.2. | AG97: =SUM(AH97:AK97) -> 9576 | AH97: 5400 | AJ97: 2880 | AK97: 1296 | AS97: 이러닝
E98: B-5-0-0-01(99c) | G98: 액세스 활용 | H98: 중급 | J98: 제한없음 | L98: 1 | M98: 1 | O98: 5 | P98: 5 | R98: 30 | S98: 30 | U98: 1 | V98: 1 | X98: 30 | Y98: 30 | AA98: 150 | AB98: 150 | AD98: 초급→중급 | AE98: 김경아 | AF98: 4.16.~4.20, | AG98: 3815 | AH98: 2600 | AJ98: 1125 | AK98: 90 | AS98: 서유정
B99: B-7. 기타 통계교육 | L99: =L100+L104+L117+L102 -> 29 | M99: =M100+M104+M117+M102 -> 25 | O99: =O100+O104+O117+O102 -> 39 | P99: =P100+P104+P117+P102 -> 53 | R99: =R100+R104+R117+R102 -> 315 | S99: =S100+S104+S117+S102 -> 300 | U99: =U100+U104+U117+U102 -> 51 | V99: =V100+V104+V117+V102 -> 40 | X99: =X100+X104+X117+X102 -> 1165 | Y99: =Y100+Y104+Y117+Y102 -> 1030 | AA99: =AA100+AA104+AA117+AA102 -> 2090 | AB99: =AB100+AB104+AB117+AB102 -> 2755 | AH99: =SUM(AH101:AH104) ->  | AI99: =SUM(AI101:AI104) ->  | AJ99: =SUM(AJ101:AJ104) ->  | AK99: =SUM(AK101:AK104) ->  | AL99: =SUM(AL101:AL104) -> 
C100: B-7-1. 맞춤형 통계교육 | L100: =L101 -> 17 | M100: =M101 -> 15 | O100: 0 | P100: 0 | R100: =R101 -> 25 | S100: 25 | U100: 17 | V100: 15 | X100: 425 | Y100: 375 | AA100: 0 | AB100: 750 | AG100: 50000 | AH100: 32500 | AI100: 0 | AJ100: 15500 | AK100: 2000 | AL100: 0
E101: B-6-1-0-01~15(17c) | G101: 맞춤형(기관) | L101: 17 | M101: 15 | O101: 1~3 | P101: 1~3 | R101: 25 | S101: 25 | U101: 17 | V101: 15 | X101: =R101*U101 -> 425 | Y101: =S101*V101 -> 375 | AA101: 0 | AB101: 750 | AD101: 신규 15기관→17기관 | AG101: 50000 | AH101: 32500 | AJ101: 15500 | AK101: 2000 | AS101: 빅데이터
C102: B-7-2. 통계세미나 | L102: =L103 -> 1 | M102: =M103 -> 1 | O102: 1 | P102: 1 | R102: 40 | S102: 40 | U102: 4 | V102: 4 | X102: 160 | Y102: 160 | AA102: 160 | AB102: 160 | AH102: =#REF! ->  | AI102: =#REF! ->  | AJ102: =#REF! ->  | AK102: =#REF! ->  | AL102: =#REF! -> 
E103: B-6-0-0-01(16c) | G103: 통계세미나 | H103: 초급 | J103: 제한없음 | L103: 1 | M103: 1 | O103: 1 | P103: 1 | R103: 40 | S103: 40 | U103: 4 | V103: 4 | X103: =R103*U103 -> 160 | Y103: =S103*V103 -> 160 | AA103: =O103*R103*U103 -> 160 | AB103: =P103*S103*V103 -> 160 | AG103: 4850 | AH103: 3000 | AJ103: 1500 | AK103: 350 | AS103: 박희경
C104: B-7-3. 학생 및 교사 통계교육 | L104: =L105+L112 -> 10 | M104: =M105+M112 -> 8 | O104: 33 | P104: 26 | R104: 235 | S104: 205 | U104: 27 | V104: 18 | X104: 535 | Y104: 450 | AA104: 1705 | AB104: 1380 | AG104: =SUM(AH104:AK104) -> 47584 | AH104: =SUM(AH106:AH111) -> 42184 | AI104: =SUM(AI106:AI111) -> 0 | AJ104: =SUM(AJ106:AJ111) -> 3464 | AK104: =SUM(AK106:AK111) -> 1936 | AL104: =SUM(AL106:AL111) -> 90100
D105: B-7-3-1. 학생교육 | L105: =SUM(L106:L111) -> 6 | M105: =SUM(M106:M111) -> 6 | O105: 17 | P105: 17 | R105: 175 | S105: 175 | U105: 13 | V105: 13 | X105: 375 | Y105: 375 | AA105: 1065 | AB105: 1065 | AD105: =SUM(AD106:AD107) -> 0 | AG105: 23000 | AH105: =SUM(AH106:AH107) -> 23000 | AI105: =SUM(AI106:AI107) -> 0 | AJ105: =SUM(AJ106:AJ107) -> 0 | AK105: =SUM(AK106:AK107) -> 0 | AL105: =SUM(AL106:AL107) -> 72500
E106: B-6-3-0-06(13c) | G106: 사랑나눔통계교실 | J106: 초등학교 5~6학년 | L106: 1 | M106: 1 | O106: 3 | P106: 3 | R106: 25 | S106: 25 | U106: 3 | V106: 3 | X106: =R106*U106 -> 75 | Y106: 75 | AA106: =O106*R106*U106 -> 225 | AB106: 225 | AD106: 교육횟수(3→2) | AE106: 김진화 | AF106: 7.25~7.27, 8.8.~8.10. | AG106: 15000 | AH106: 15000 | AL106: 52500 | AR106: 16년 위탁(31,980) | AS106: 박주연
E107: B-6-3-0-01(99c) | G107: 어린이 통계캠프 | J107: 초등학교 5~6학년 | L107: 1 | M107: 1 | O107: 3 | P107: 3 | R107: 30 | S107: 30 | U107: 2 | V107: 2 | X107: 60 | Y107: 60 | AA107: 180 | AB107: 180 | AE107: 서유정 | AF107: 7.30~8.1, 8.6 ~8.8. | AG107: 8000 | AH107: 8000 | AL107: 20000 | AR107: 16년 위탁(8,050) | AS107: 박희경
E108: B-6-3-0-03(06c) | G108: 중학생 통계아카데미 | J108: 중학생 | L108: 1 | M108: 1 | O108: 3 | P108: 3 | R108: 30 | S108: 30 | U108: 2 | V108: 2 | X108: 60 | Y108: 60 | AA108: 180 | AB108: 180 | AE108: 순수현 | AF108: 5.30~6.1, 10.31.~11.2. | AG108: 7000 | AH108: 7000 | AL108: 17600 | AR108: 16년 위탁(8,800) | AS108: 순수현
E109: B-6-3-0-04(11c) | G109: 고등학생 통계아카데미 | J109: 고등학생 | L109: 1 | M109: 1 | O109: 2 | P109: 2 | R109: 30 | S109: 30 | U109: 2 | V109: 2 | X109: 60 | Y109: 60 | AA109: 120 | AB109: 120 | AE109: 김경아 | AF109: 8.2.~8.3., 8.6.~8.7. | AG109: 6728 | AH109: 4652 | AJ109: 1366 | AK109: 710 | AS109: 서유정
E110: B-6-3-0-02(99c) | G110: 대학생 통계실무워크숍 | J110: 대학생 | L110: 1 | M110: 1 | O110: 3 | P110: 3 | R110: 30 | S110: 30 | U110: 2 | V110: 2 | X110: 60 | Y110: 60 | AA110: 180 | AB110: 180 | AE110: 김경아 | AF110: 7.11.~7.13, 7.18.~7.20. | AG110: 5604 | AH110: 3992 | AJ110: 964 | AK110: 648 | AS110: 서유정
E111: B-6-3-0-05(11c) | G111: 대학원생 통계논문작성 | J111: 대학원생 | L111: 1 | M111: 1 | O111: 3 | P111: 3 | R111: 30 | S111: 30 | U111: 2 | V111: 2 | X111: 60 | Y111: 60 | AA111: 180 | AB111: 180 | AF111: 7.23.~7.25, 8.1~8.3. | AG111: 5252 | AH111: 3540 | AJ111: 1134 | AK111: 578 | AS111: 전문1팀
D112: B-7-3-2. 교사교육 | L112: =SUM(L113:L116) -> 4 | M112: =SUM(M113:M116) -> 2 | O112: 16 | P112: 9 | R112: 60 | S112: 30 | U112: 14 | V112: 5 | X112: 160 | Y112: 75 | AA112: 640 | AB112: 315 | AG112: 7500 | AH112: =SUM(AH113:AH114) -> 6000 | AI112: =SUM(AI113:AI114) -> 0 | AJ112: =SUM(AJ113:AJ114) -> 1000 | AK112: =SUM(AK113:AK114) -> 500 | AL112: =SUM(AL113:AL114) -> 0
E113: B-6-4-0-01(14c) | G113: 초등 교사 통계연수 | J113: 초등교사 | L113: 1 | M113: 1 | O113: 5 | P113: 5 | R113: 20 | S113: 15 | U113: 1 | V113: 1 | X113: =R113*U113 -> 20 | Y113: 15 | AA113: =O113*R113*U113 -> 100 | AB113: 75 | AE113: 서유정 | AF113: 7.30~8.3 | AG113: 3650 | AH113: 3000 | AJ113: 400 | AK113: 250 | AS113: 박희경
E114: B-6-3-0-02(14c) | G114: 중학교 교사 통계연수 | J114: 중학교 | L114: 1 | M114: 1 | O114: 4 | P114: 4 | R114: 20 | S114: 15 | U114: 6 | V114: 4 | X114: 120 | Y114: 60 | AA114: 480 | AB114: 240 | AD114: 교육횟수(4→6) 고등학교 구별필요 | AF114: 7.23~7.27, 7.30~8.3, 8.6~8.10. | AG114: 3850 | AH114: 3000 | AJ114: 600 | AK114: 250 | AR114: 16년 폐강 | AS114: 순수현
G115: 고등학교 교사 통계연수 | J115: 고등학교 | L115: 1 | M115: 0 | O115: 3 | P115: 0 | R115: 20 | S115: 0 | U115: 1 | V115: 0 | X115: 20 | Y115: 0 | AA115: 60 | AB115: 0
G116: 17개 시도교육청 교사위탁운영 | J116: 중등교사 | L116: 1 | M116: 0 | O116: 4 | P116: 0 | R116: 0 | S116: 0 | U116: 6 | V116: 0 | X116: =R116*U116 -> 0 | Y116: 0 | AA116: =O116*R116*U116 -> 0 | AD116: 신규
C117: B-7-4. 외국인 통계교육 | L117: =SUM(L118:L119) -> 1 | M117: =SUM(M118:M119) -> 1 | O117: =SUM(O118:O119) -> 5 | P117: 26 | R117: 15 | S117: 30 | U117: 3 | V117: 3 | X117: 45 | Y117: 45 | AA117: 225 | AB117: 465 | AG117: =SUM(AH117:AK117) -> 0 | AH117: =SUM(AH118:AH119) -> 0 | AI117: =SUM(AI118:AI119) -> 0 | AJ117: =SUM(AJ118:AJ119) -> 0 | AK117: =SUM(AK118:AK119) -> 0 | AL117: =SUM(AL118:AL119) -> 0
E118: B-6-5-0-01(14c) | G118: 외국인 통계연수/UNSIAP 초청연수 | J118: 외국통계공무원 | L118: 1 | M118: 1 | O118: 0 | P118: 21 | R118: 0 | S118: 15 | U118: 0 | V118: 1 | X118: =U118*R118 -> 0 | Y118: =V118*S118 -> 15 | AA118: =O118*R118*U118 -> 0 | AB118: =P118*S118*V118 -> 315 | AD118: 캄보디아 통계연수 폐지 | AR118: 연수경비 1차 27,096 2차 27,100
O119: 5 | P119: 5 | R119: 15 | S119: 15 | U119: 3 | V119: 2 | X119: 45 | Y119: =V119*S119 -> 30 | AA119: =O119*R119*U119 -> 225 | AB119: =P119*S119*V119 -> 150
A120: C. 기타교육 | L120: =L121+L123 -> 3 | M120: =M121+M123 -> 3 | O120: =O121+O123 -> 8 | P120: 8 | R120: 110 | S120: 110 | U120: 7 | V120: 6 | X120: 260 | Y120: 200 | AA120: 760 | AB120: 580 | AG120: =SUM(AH120:AK120) -> 1236 | AH120: =AH121+AH169+AH198 -> 832 | AI120: =AI121+AI169+AI198 -> 0 | AJ120: =AJ121+AJ169+AJ198 -> 246 | AK120: =AK121+AK169+AK198 -> 158 | AL120: =AL121+AL169+AL198 -> 0
B121: C-1. 시책교육 | L121: =L122 -> 1 | M121: 1 | O121: 2 | P121: 2 | R121: 20 | S121: 20 | U121: 1 | V121: 1 | X121: 20 | Y121: 20 | AA121: 40 | AB121: 40 | AG121: 1236 | AH121: 832 | AI121: 0 | AJ121: 246 | AK121: 158 | AL121: 0
E122: C-1-0-0-01(14c) | G122: 소셜미디어의 이해 | H122: 초급 | J122: 제한없음 | L122: 1 | M122: 1 | O122: 2 | P122: 2 | R122: 20 | S122: 20 | U122: 1 | V122: 1 | X122: =R122*U122 -> 20 | Y122: =S122*V122 -> 20 | AA122: =O122*R122*U122 -> 40 | AB122: =P122*S122*V122 -> 40 | AC122: (수요조사)교육기간 연장 필요(건강보험공단) (의견) 독립시책교육과정으로 2일 과정으로 충분 | AD122: 정부3.0 정책의 이해 변경 | AG122: 1236 | AH122: 832 | AJ122: 246 | AK122: 158 | AS122: 전문1팀
B123: C-2. 일반소양 | L123: =SUM(L124:L125) -> 2 | M123: =SUM(M124:M125) -> 2 | O123: 6 | P123: 6 | R123: 90 | S123: 90 | U123: 6 | V123: 5 | X123: 240 | Y123: 180 | AA123: 720 | AB123: 540 | AH123: =AH125+#REF! ->  | AI123: =AI125+#REF! ->  | AJ123: =AJ125+#REF! ->  | AK123: =AK125+#REF! ->  | AL123: =AL125+#REF! -> 
E124: C-2-0-0-02(14c) | G124: 현장조사 스트레스관리 | H124: 초급 | J124: 통계청 | L124: 1 | M124: 1 | O124: 3 | P124: 3 | R124: 30 | S124: 30 | U124: 4 | V124: 4 | X124: =R124*U124 -> 120 | Y124: =S124*V124 -> 120 | AA124: =O124*R124*U124 -> 360 | AB124: =P124*S124*V124 -> 360 | AC124: (교육일자) 월말, 월초로 지정(통계조사 일정상) | AF124: 4.23.~4.25, 5.23~5.25, 10.29.~10.31, 11.21.~11.23. | AG124: 0 | AL124: 69344 | AR124: 16년(52,080)
E125: C-2-0-0-01(14c) | G125: 생활속의 음악 | J125: 제한없음 | L125: 1 | M125: 1 | O125: 3 | P125: 3 | R125: 60 | S125: 60 | U125: 2 | V125: 1 | X125: =R125*U125 -> 120 | Y125: =S125*V125 -> 60 | AA125: =O125*R125*U125 -> 360 | AB125: =P125*S125*V125 -> 180 | AC125: (수요조사)확대 필요(경인) | AF125: 5.30~6.1 | AG125: 2940 | AH125: 2400 | AK125: 540
G128: 신규과정 신청 | L128: =SUM(L129:L132) -> 0 | M128: =SUM(M129:M132) -> 0 | O128: =SUM(O129:O132) -> 0 | P128: =SUM(P129:P132) -> 0 | R128: =SUM(R129:R132) -> 0 | S128: =SUM(S129:S132) -> 0 | U128: =SUM(U129:U132) -> 0 | V128: =SUM(V129:V132) -> 0 | X128: =SUM(X129:X132) -> 0 | Y128: =SUM(Y129:Y132) -> 0 | AA128: =SUM(AA129:AA132) -> 0 | AB128: =SUM(AB129:AB132) -> 0
G129: 통계생산패키지 활용 | AD129: 조사시스템관리과
G130: 현장관리자(팀장) 역량강화 | AD130: 경인지방통계청
G131: 인문학 관련 소양 교육 | AD131: 경인지방통계청 | AF131: 3.26.~3.28, 9.12~9.14
G132: R 고급 시각화 | AD132: 대외경제정책연구원 | AG132: =SUM(AH132:AK132) -> 10173 | AH132: 7473 | AJ132: 1890 | AK132: 810 | AS132: 빅데이터
G134: 폐지과정(5개) | L134: =SUM(L135:L139) -> 0 | M134: =SUM(M135:M139) -> 0 | O134: =SUM(O135:O139) -> 0 | P134: =SUM(P135:P139) -> 0 | R134: =SUM(R135:R139) -> 0 | S134: =SUM(S135:S139) -> 0 | U134: =SUM(U135:U139) -> 0 | V134: =SUM(V135:V139) -> 0 | X134: =SUM(X135:X139) -> 0 | Y134: =SUM(Y135:Y139) -> 0 | AA134: =SUM(AA135:AA139) -> 0 | AB134: =SUM(AB135:AB139) -> 0
AG136: =SUM(AH136:AK136) -> 1707 | AH136: 1672 | AI136: 0 | AK136: 35 | AR136: 2016 폐강 | AS136: 빅데이터
AG137: =SUM(AH137:AK137) -> 5796 | AH137: 5053 | AJ137: 519 | AK137: 224 | AS137: 빅데이터
AF138: 3.22~3.24(폐강)신청인원부족 | AG138: =SUM(AH138:AK138) -> 0 | AH138: 0 | AJ138: 0 | AK138: 0 | AR138: 2016년 폐강 | AS138: 전문1팀
AF139: 5.10~5.12(폐강) | AG139: =SUM(AH139:AK139) -> 0 | AH139: 0 | AJ139: 0 | AK139: 0 | AR139: 2016년 부교재 지급 | AS139: 전문1팀

Sheet 2024년 이러닝 운영과정 목록
A1: 2024년 5월 이러닝 운영 과정(총 64개 과정)
A3: 구분 | D3: 연번 | E3: 과정명 | F3: 수준 | G3: 교육대상 | H3: 과정수 | I3: 차시수 | J3: 인정시간 | K3: 교육내용 | L3: 비고
A5: 이러닝 | H5: =H6+H89 -> 64 | I5: =I6+I89 -> 686 | J5: =J6+J89 -> 270
A6: B. 전문교육 | H6: =H7+H22+H30+H52+H77+H87 -> 59 | I6: =I7+I22+I30+I52+I77+I87 -> 642 | J6: =J7+J22+J30+J52+J77+J87 -> 253
B7: B-1. 국가통계정책 | H7: =H8+H18 -> 12 | I7: =I8+I18 -> 148 | J7: 58
C8: B-1-1. 통계정책 | H8: =SUM(H9:H17) -> 9 | I8: =SUM(I9:I17) -> 118 | J8: 46
D9: 1 | E9: 국가통계와 정책(신설) | F9: 초급 | G9: 제한없음 | H9: 1 | I9: 4 | J9: 1 | K9: -국가통계의 의의, 주요 국가통계제도 -통계정보서비스 시스템
D10: =D9+1 -> 2 | E10: 자체통계품질진단 관리 | F10: 초급 | G10: 제한없음 | H10: 1 | I10: 11 | J10: 4 | K10: -국가통계품질진단 개요 및 이해, 품질진단 유형, 자체통계품질 진단 흐름도, 수행 절차 -자체통계품질진단시스템 사용법
D11: 3 | E11: 지역정책과 통계 활용 | F11: 초급 | G11: 제한없음 | H11: 1 | I11: 23 | J11: 11 | K11: -지역정책 수립과 집행을 위한 지역사회지표 작성 및 활용방법, 지역통계 발전 방안 등
D12: 4 | E12: 통계가 쉬워지는 기초 수학 끝내기 | F12: 초급 | G12: 제한없음 | H12: 1 | I12: 5 | J12: 2 | K12: -수학기호, 다항식과 연산, 순열과 조합, 함수, 미·적분
D13: 5 | E13: 통계기초 및 활용(재개발) | F13: 중급 | G13: 제한없음 | H13: 1 | I13: 25 | J13: 13 | K13: -표와 그래프, 대푯값, 선형관계, 확률변수, 확률분포, 기댓값 -결합분포, 주변분포, 이상분포, 기타 이산형 분포, 정규분포 -통게적 추론, 모집단 평균비표, 모집단 비율 비교 -회귀분석 개념과 응용, 정리
D14: 6 | E14: 통계업무 필수 지식(재개발) | F14: 초급 | G14: 제한없음 | H14: 1 | I14: 8 | J14: 4 | K14: -통계와 통계의 역할, 자료수집, 자료분석 -조사결과 보는 법, 예측
D15: 7 | E15: 통계적으로 사고하기 | F15: 중급 | G15: 제한없음 | H15: 1 | I15: 13 | J15: 3 | K15: -통계적 필요/태도/용어/정리/모형 -확률과 생활 및 판단, 표본조사와 오차 -통계적 추정, 합리적 의심 -통계적 비교 및 관계 분석
D16: 8 | E16: 통계품질관리 | F16: 초급 | G16: 제한없음 | H16: 1 | I16: 4 | J16: 1 | K16: -통계품질의 정의 및 품질차원 -국가통계 품질진단 내용 및 방법, 품질관리 체계
D17: 9 | E17: 통계학의 이해 | F17: 초급 | G17: 제한없음 | H17: 1 | I17: 25 | J17: 7 | K17: -통계의 필요성, 표본조사, 대푯값, 산포도 -정규분포, 가설검정, 유의수준과 유의확률 -분할표, 카이제곱 검정, 상관분석, 회귀분석, 평균 비교 등
C18: B-1-2. 통계기준 | H18: =SUM(H19:H21) -> 3 | I18: =SUM(I19:I21) -> 30 | J18: =SUM(J19:J21) -> 12
D19: =D17+1 -> 10 | E19: 한국표준산업분류 | F19: 초급 | G19: 제한없음 | H19: 1 | I19: 13 | J19: 6 | K19: -개요 및 산업분류총설, 각 코드별 분류체계
D20: =D19+1 -> 11 | E20: 한국표준직업분류 | F20: 초급 | G20: 제한없음 | H20: 1 | I20: 14 | J20: 5 | K20: -직업분류 정의, 대분류별 분류체계
D21: =D20+1 -> 12 | E21: 한국종사상지위분류 | F21: 초급 | G21: 제한없음 | H21: 1 | I21: 3 | J21: 1 | K21: -개요, 지위 권한 유형, 경제적 위험 유형
B22: B-2. 국가통계이해 | H22: =H23+H25 -> 5 | I22: =I23+I25 -> 51 | J22: =J23+J25 -> 19
C23: B-2-1. 경제통계 | H23: =SUM(H24:H24) -> 1 | I23: =SUM(I24:I24) -> 15 | J23: =SUM(J24:J24) -> 4
D24: 13 | E24: 재무제표 이해 | F24: 중급 | G24: 제한없음 | H24: 1 | I24: 15 | J24: 4 | K24: -재무제표와 회계, 계정과목 기입 -유통기업/제조기업 재무제표 작성과정 -제무상태표, 손익계산서 -재무제표 분석 및 활용
C25: B-2-2. 사회통계 | H25: =SUM(H26:H29) -> 4 | I25: =SUM(I26:I29) -> 36 | J25: =SUM(J26:J29) -> 15
D26: 14 | E26: 사회통계의 이해 | F26: 초급 | G26: 제한없음 | H26: 1 | I26: 15 | J26: 6 | K26: -사회통계의 체계, 사회지표 -가족·가구, 건강, 교육·훈련, 소득·소비·자산 등
D27: 15 | E27: 이민자 체류실태 및 고용조사 | F27: 초급 | G27: 제한없음 | H27: 1 | I27: 9 | J27: 3 | K27: -체류외국인 및 귀화자 추이, 조사개요, 조사표 작성방법 | L27: 차시별평가
D28: =D27+1 -> 16 | E28: 인구동향조사 | F28: 초급 | G28: 통계청, 공무원 | H28: 1 | I28: 6 | J28: 3 | K28: -조사 개요, 인구동태 입력시스템 이용방법 -주요업무개괄 및 국내인구이동통계 | L28: 차시별평가
D29: 17 | E29: 지역별고용조사 | F29: 초급 | G29: 제한없음 | H29: 1 | I29: 6 | J29: 3 | K29: -조사개요 및 조사기본 개념, 사례별 처리방법 -현장조사방법, 조사표작성방법 등 | L29: 차시별평가
B30: B-3. 국가통계작성 | H30: =H31+H33+H41 -> 18 | I30: =I31+I33+I41 -> 162 | J30: 62
C31: B-3-1. 조사기획 | H31: =SUM(H32:H32) -> 1 | I31: =SUM(I32:I32) -> 20 | J31: 7
D32: 18 | E32: 조사방법의 이해 | F32: 초급 | G32: 제한없음 | H32: 1 | I32: 20 | J32: 7 | K32: -다양한 자료수집방법과 표본추출방법 -질문지 작성에 관한 중요성과 조사방법의 기본 개념
C33: B-3-2. 자료수집·처리 및 분석 | H33: =SUM(H34:H40) -> 7 | I33: =SUM(I34:I40) -> 74 | J33: 27
D34: 19 | E34: 시계열자료의 분석과 실무 | F34: 고급 | G34: 제한없음 | H34: 1 | I34: 16 | J34: 5 | K34: -시계열분석의 이론과 기법 -계절프로그램(X-12a) 활용 및 사례
D35: =D34+1 -> 20 | E35: 자료수집 | F35: 초급 | G35: 제한없음 | H35: 1 | I35: 6 | J35: 2 | K35: -국가통계의 기초자료 수집 개요 및 사전준비, 대면조사, 비대면조사, 행정자료 이용, 가공통계 등
D36: 21 | E36: 조사원 면접기법교육 | F36: 초급 | G36: 제한없음 | H36: 1 | I36: 7 | J36: 1 | K36: -조사원의 기본 역량과 사전교육의 면접기법, 현장교육의 현장조사 요령을 습득하여 조사품질제고
D37: 22 | E37: 표본이론 기초 | F37: 중급 | G37: 제한없음 | H37: 1 | I37: 14 | J37: 6 | K37: -확률과 기댓값, 확률추출과 비확률 추출 -층화추출, 계통추출, 집락추출방법, 확률비례추출법, 프로그램 활용 등
D38: 23 | E38: 표본학습 기초 | F38: 초급 | G38: 제한없음 | H38: 1 | I38: 5 | J38: 2 | K38: -표본이론 발달역사, 표본기초의 이해, 표본규모의 결정, 표본추출 방법의 종류 등
D39: 24 | E39: 현장조사 인력 양성 | F39: 초급 | G39: 제한없음 | H39: 1 | I39: 8 | J39: 4 | K39: -국가통계의 이해, 통계작성절차 -현장조사 기본 요령, 조사거부 대상처 대응요령 -국가통계활용사례 및 검색방법, 표본설계 및 통계조사오차
D40: 25 | E40: 회귀분석의 이해와 사례 | F40: 고급 | G40: 제한없음 | H40: 1 | I40: 18 | J40: 7 | K40: -단순선형회귀, 다중선형회귀, 회귀모형의 진단, 질적 설명변수, 변수변환, 가중 최소제곱법, 공선형 자료분석, 로지스틱 회귀 ※이론과정임
C41: B-3-3. 공표 및 관리 | H41: =SUM(H42:H51) -> 10 | I41: =SUM(I42:I51) -> 68 | J41: 28
D42: =D40+1 -> 26 | E42: e-나라지표 업무관리시스템 담당자 교육(신설) | F42: 초급 | G42: 제한없음 | H42: 1 | I42: 5 | J42: 2 | K42: -지표누리 소개 및 개요, 관리체계 안내, 지표관리 및 점검
D43: =D42+1 -> 27 | E43: MDIS 활용 | F43: 초급 | G43: 제한없음 | H43: 1 | I43: 6 | J43: 2 | K43: -국가통계 마이크로데이터 통합서비스(MDIS) 소개 및 특징 -마이크로데이터 추출 및 활용 등
D44: 28 | E44: NARA-PC 활용 | F44: 초급 | G44: 제한없음 | H44: 1 | I44: 10 | J44: 6 | K44: -NARA-PC 소개, 실행 및 조사 설정 -조사표 및 조사대상처 설계, 입력, 취합 -통계 및 분석(R패키지)
D45: 29 | E45: SGIS 플러스 활용 | F45: 초급 | G45: 제한없음 | H45: 1 | I45: 8 | J45: 3 | K45: -통계지리정보 소개, 검색 및 활용방법 -자료제공서비스, OpenAPI 이용법 -SGIS 에듀
D46: 30 | E46: 국가통계포털(KOSIS) 활용 | F46: 초급 | G46: 제한없음 | H46: 1 | I46: 6 | J46: 2 | K46: -국가통계포털 소개, 통계정보 찾기, 통계표 조회, 부가서비스
D47: 31 | E47: 나라통계시스템 조사통계 사용자교육 | F47: 초급 | G47: 제한없음 | H47: 1 | I47: 5 | J47: 2 | K47: -조사통계업무에 관련된 조사업무관리, 명부관리, 내검관리 및 집계표 설계 등
D48: 32 | E48: 통계데이터 비밀보호 | F48: 초급 | G48: 제한없음 | H48: 1 | I48: 5 | J48: 3 | K48: -정보보호의 이해, 노출위험의 이해, 차등정보보호 데이터 안전하게 활용
D49: 33 | E49: 통계작성기관을 위한 통계DB시스템사용법 | F49: 초급 | G49: 제한없음 | H49: 1 | I49: 5 | J49: 2 | K49: -통계DB의 이해와 통계표 설계, 통계표 생성방법, 통계표 수치입력, 목록연계 및 전송, 메뉴 활용 등
D50: 34 | E50: 통계를 활용한 보고서 작성방법 | F50: 중급 | G50: 제한없음 | H50: 1 | I50: 12 | J50: 4 | K50: -개요, 과정의 이해, 통계의 활용(시각화, 수치값), 통계자료 해석/ 활용 시 고려사항, 보고서 작성 사례
D51: 35 | E51: 재미있는 실용통계 | F51: 초급 | G51: 제한없음 | H51: 1 | I51: 6 | J51: 2 | K51: -통계 개요, 통계의 함정, 통계적 문제해결하기, 확률, 빅데이터 개요
B52: B-4. 데이터 분석 | H52: =H53+H56+H59+H64+H67+H69+H74+H62 -> 16 | I52: =I53+I56+I59+I64+I67+I69+I74+I62 -> 215 | J52: =J53+J56+J59+J64+J67+J69+J74+J62 -> 84
C53: B-4-1. R | H53: =SUM(H54:H55) -> 2 | I53: =SUM(I54:I55) -> 50 | J53: 26
D54: =D51+1 -> 36 | E54: R 기초 | F54: 초급 | G54: 제한없음 | H54: 1 | I54: 25 | J54: 14 | K54: -R 프로그램 설치, 기본 사용법, 자료 가공 -일변량 자료분석, 교차표와 그래프, 산점도
D55: =D54+1 -> 37 | E55: R을 활용한 통계분석 | F55: 중급 | G55: 제한없음 | H55: 1 | I55: 25 | J55: 12 | K55: -대푯값, 자료 가공, 그래프, 난수 모의실험 -함수 그리기, 3차원그림, 회귀분석 등
C56: B-4-2. SAS | H56: =SUM(H57:H58) -> 2 | I56: =SUM(I57:I58) -> 30 | J56: =SUM(J57:J58) -> 11
D57: =D55+1 -> 38 | E57: SAS를 활용한 초급 통계분석 | F57: 초급 | G57: 제한없음 | H57: 1 | I57: 15 | J57: 6 | K57: -통계표 작성, 상관분석, 단순선형회귀모형, 로지스틱 회귀분석, 요인분석, 군집분석 등
D58: =D57+1 -> 39 | E58: SAS를 활용한 중급 통계분석 | F58: 중급 | G58: 제한없음 | H58: 1 | I58: 15 | J58: 5 | K58: - 데이터 기본 사용방법, 데이터 관리, 기술통계, 독립표본, 대응표본, 분산분석, 교차분석 등
C59: B-4-3. SPSS | H59: =SUM(H60:H61) -> 2 | I59: =SUM(I60:I61) -> 27 | J59: =SUM(J60:J61) -> 9
D60: =D58+1 -> 40 | E60: SPSS 초급 통계분석 | F60: 초급 | G60: 제한없음 | H60: 1 | I60: 14 | J60: 5 | K60: -SPSS 기본 사용방법, 데이터 작성 및 관리, 기술통계, 다중응답 자료 입력 및 분석, t-test, 분산분석 및 다중비교, 교차분석
D61: =D60+1 -> 41 | E61: SPSS 중급 통계분석 | F61: 중급 | G61: 제한없음 | H61: 1 | I61: 13 | J61: 4 | K61: -통계표 작성, 분석결과 문서작성 및 명령어 사용, 상관분석, 선형 회귀분석모형, 다중회귀 표준화계수, 로지스틱 회귀분석, 신뢰도 분석, 요인분석, 군집분석
C62: B-4-4. Stata | H62: =SUM(H63) -> 1 | I62: =SUM(I63) -> 8 | J62: 4
D63: =D61+1 -> 42 | E63: Stata 기본 이해(신설) | F63: 초급 | G63: 제한없음 | H63: 1 | I63: 8 | J63: 4 | K63: -데이터세트 준비, 데이터 처리, 그래프 그리기, 기초 통계량 -t검정, 비모수적 검정, ANOVA, 선형회귀분석
C64: B-4-5. 파이썬 | H64: =SUM(H65:H66) -> 2 | I64: =SUM(I65:I66) -> 28 | J64: =SUM(J65:J66) -> 9
D65: =D63+1 -> 43 | E65: 파이썬 데이터 분석 초급 | F65: 초급 | G65: 제한없음 | H65: 1 | I65: 13 | J65: 3 | K65: -파이썬 언어의 기본, 내장자료형, 조건문, 반복문, 파일 입출력 및 함수, 파이썬의 모듈, 통계적 머신러닝 등
D66: =D65+1 -> 44 | E66: 파이썬 데이터 분석 중급 | F66: 중급 | G66: 제한없음 | H66: 1 | I66: 15 | J66: 6 | K66: -데이터프레임 생성, 변환/ 외부데이터불러오기, 데이터 전처리, 데이터프레임 응용, 합치기, 선형회귀분석, 로지스틱회귀분석, KNN, SVM, Decision Tree, 군집분석, 모형진단과 교차검증
C67: B-4-6. 엑셀 | H67: =SUM(H68:H68) -> 1 | I67: =SUM(I68:I68) -> 12 | J67: =SUM(J68:J68) -> 4
D68: =D66+1 -> 45 | E68: 엑셀로 배우는 통계분석 | F68: 중급 | G68: 제한없음 | H68: 1 | I68: 12 | J68: 4 | K68: -엑셀 통계분석의 시작, 데이터 수집과 정리, 중위수와 최빈수, 통계 데이터 시각화 방법, 가설검정과 통계적 추정 등
C69: B-4-7. 빅데이터 | H69: =SUM(H70:H73) -> 4 | I69: =SUM(I70:I73) -> 49 | J69: =SUM(J70:J73) -> 18
D70: 46 | E70: 데이터 분석을 위한 SQL 입문 | F70: 초급 | G70: 제한없음 | H70: 1 | I70: 13 | J70: 3 | K70: -SQL의 특징, SELECT 명령으로 데이터 조회하기, 산술연산과 정렬, 집합연산 활용하기, R에서 SQL의 활용 등
D71: =D70+1 -> 47 | E71: 미리 배우는 데이터사이언스(신설) | F71: 초급 | G71: 제한없음 | H71: 1 | I71: 15 | J71: 6 | K71: -빅데이터 이해, 변동/관계/데이터/확률 이해 -의사결정, 다중비교, 예측의 이해 -과학/경제/공공/마케딩과 데이터 과학, 개인정보보호
D72: =D71+1 -> 48 | E72: 데이터사이언스 분석 사레(신설) | F72: 초급 | G72: 제한없음 | H72: 1 | I72: 15 | J72: 6 | K72: -데이터 기반 의사결정, 디지털 전환 및 데이터사이언스 진화 -AI, 딥런닝(이미지 인식, 번역), 진단분석과 이상탐지 사례 -데이터 수집, 데이터 분석
D73: 49 | E73: 데이터 전처리 | F73: 초급 | G73: 제한없음 | H73: 1 | I73: 6 | J73: 3 | K73: -데이터전처리 이해, 데이터 탐색, 결측치 처리, 이상치 판별, 데이터 변환, 모델링 데이터 준비
C74: B-4-8. 기타 | H74: =SUM(H75:H76) -> 2 | I74: =SUM(I75:I76) -> 11 | J74: =SUM(J75:J76) -> 3
D75: =D73+1 -> 50 | E75: 통계 교육용 공학도구 통그라미 활용 | F75: 초급 | G75: 제한없음 | H75: 1 | I75: 6 | J75: 2 | K75: -통그라미 개요, 자료의 입력 및 생성, 자료변환, 그래프, 통계표 작성, 설문지 작성, 설문 및 자료 관리
D76: =D75+1 -> 51 | E76: 통계패키지 학습을 위한 필수 통계지식 | F76: 중급 | G76: 제한없음 | H76: 1 | I76: 5 | J76: 1 | K76: -통계 개념, 정규분포의 이해, 표본추출분포, 가설검정, 가설검정과 분석도구
B77: B-6. 기타 통계교육 | H77: =H78+H83 -> 7 | I77: =I78+I83 -> 54 | J77: 26
C78: B-6-3. 학생교육 | H78: =SUM(H79:H82) -> 4 | I78: =SUM(I79:I82) -> 21 | J78: 11
D79: =D76+1 -> 52 | E79: 역사속에서 찾은 통계이야기 | F79: 초급 | G79: 제한없음 | H79: 1 | I79: 7 | J79: 5 | K79: -역사 속 통계수치를 통해 역사적 사건을 이해 ※ 초등학교 5~6학년을 대상으로 제작
D80: =D79+1 -> 53 | E80: 통계로 논리 잡기 | F80: 초급 | G80: 제한없음 | H80: 1 | I80: 10 | J80: 4 | K80: -일상생할의 다향한 사례를 통계적으로 분석해 논리적인 사고 배양 ※ 초·중학교 대상으로 제작
D81: 54 | E81: 통계로 보는 안전교육 | F81: 초급 | G81: 제한없음 | H81: 1 | I81: 2 | J81: 1 | K81: -교통사고 예방, 학교 안전사고 예방 ※ 초등학교 5~6학년을 대상으로 제작
D82: 55 | E82: 통계를 보면 경제가 보여요 | F82: 초급 | G82: 제한없음 | H82: 1 | I82: 2 | J82: 1 | K82: -인구통계와 경제관계, 미래산업의 변화와 통계 ※ 초등학교 5~6학년을 대상으로 제작
C83: B-6-4. 교사교육 | H83: =SUM(H84:H86) -> 3 | I83: =SUM(I84:I86) -> 33 | J83: =SUM(J84:J86) -> 15
D84: =D82+1 -> 56 | E84: 실용통계 지도교사 통계연수(이론편) | F84: 초급 | G84: 제한없음 | H84: 1 | I84: 12 | J84: 5 | K84: -통계와 통계적 문제해결, 자료와 표본, 자료의 요약과 표현, 변수 사이의 관계 등
D85: =D84+1 -> 57 | E85: 통계포스터 만들기 지도방법 | F85: 초급 | G85: 제한없음 | H85: 1 | I85: 6 | J85: 3 | K85: -통계적 문제해결과 통계포스터 -문제설정 단계의 지도 -통그라미를 이용한 자료의 수집 등
D86: 58 | E86: 통계를 활용한 사회과 수행평가 구성 및 실천 | F86: 초급 | G86: 제한없음 | H86: 1 | I86: 15 | J86: 7 | K86: -통계 개요, 활용, 사회과 교과 역량과 통계의 활용, 교수학습 실천사례집 활용, 수행평가 고안, 사례
B87: B-7. 정보화 | H87: =SUM(H88:H88) -> 1 | I87: =SUM(I88:I88) -> 12 | J87: =SUM(J88:J88) -> 4
D88: 59 | E88: 초보자를 위한 엑셀 기초 | F88: 초급 | G88: 제한없음 | H88: 1 | I88: 12 | J88: 4 | K88: -데이터 입력 및 편집, 문서 서식 지정, 조건부 서식, 수식의 이해 및 작성, 논리 함수, 피벗 테이블 작성 등
A89: C. 기타교육 | H89: =H90 -> 5 | I89: =I90 -> 44 | J89: =J90 -> 17
B90: C-2. 일반소양 | H90: =SUM(H91:H95) -> 5 | I90: =SUM(I91:I95) -> 44 | J90: =SUM(J91:J95) -> 17
D91: 60 | E91: 강의 운영 기법 및 전략 | F91: 초급 | G91: 제한없음 | H91: 1 | I91: 10 | J91: 4 | K91: -수업설계전략, 강의식 수업전략, 학습자료 개발전략, 내 수업 설계 하기 등
D92: 61 | E92: 마음을 움직이는 설득 전략 | F92: 초급 | G92: 제한없음 | H92: 1 | I92: 10 | J92: 4 | K92: -마음을 움직이는 힘, 공감 -설득을 위한 표현 기술, 일관성의 법칙 등
D93: 62 | E93: 변화와 성장을 위한 밀레니얼 리더십 | F93: 초급 | G93: 제한없음 | H93: 1 | I93: 10 | J93: 3 | K93: -밀레니얼 세대 이해, 특징, 소통법, 밀레니얼에게 피드백 하는 방법, 밀레니얼 세대와 함께 하는 리더십
D94: 63 | E94: 직장내 소통강화 대화센스 | F94: 초급 | G94: 제한없음 | H94: 1 | I94: 4 | J94: 2 | K94: -소통의 정의, 소통이 어려운 이유, 유형별 소통방법, 상황별 대화 센스
D95: 64 | E95: 행복한 삶을 위한 스트레스 관리 | F95: 초급 | G95: 제한없음 | H95: 1 | I95: 10 | J95: 4 | K95: -나의 성격과 정서 알아보기, EQ란, 행복의 온도 맞추기, 관계에서 행복찾기 등
E97: * 차시별 평가: 차시 학습 후 시험평가(3문제) 만점 시 다음 차시 진행
